bitfinex-derivatives/quotes_SOLF0:USTF0_20230404
["timestamp","ask_amount","ask_price","bid_price","bid_amount"]
[1680606152040,24.16,20.687,20.68,0.06616478]
[1680606162050,24.16,20.689,20.68,0.06616478]
[1680606170152,10.0,20.688,20.68,0.06616478]
[1680606172153,34.16,20.688,20.68,0.06616478]
[1680606173456,24.16,20.688,20.68,0.06616478]
[1680606192673,24.16,20.685,20.68,0.06616478]
[1680606192873,24.16,20.685,20.675,0.06704288]
[1680606193576,48.5094,20.684,20.675,0.06704288]
[1680606194777,48.5094,20.684,20.676,24.11]
[1680606195485,72.6694,20.684,20.675,0.06704288]
[1680606196571,10.0,20.683,20.675,0.06704288]
[1680606197479,24.09,20.681,20.675,0.06704288]
[1680606197677,10.0,20.68,20.671,0.0690564]
[1680606198078,24.09,20.681,20.671,0.0690564]
[1680606199081,10.0,20.68,20.671,0.0690564]
[1680606201481,24.09,20.677,20.671,0.0690564]
[1680606201678,24.09,20.677,20.667,0.0661243]
[1680606202382,45.3506,20.676,20.667,0.0661243]
[1680606210886,45.3506,20.676,20.668,24.16]
[1680606225497,45.3506,20.676,20.668,23.98131962]
[1680606227300,64.7406,20.676,20.669,19.39]
[1680606228296,64.7406,20.676,20.667,0.0661243]
[1680606228297,19.39,20.671,20.667,0.0661243]
[1680606228501,19.39,20.671,20.663,19.3]
[1680606228803,0.06731104,20.674,20.67,19.39]
[1680606229000,45.3506,20.676,20.67,19.39]
[1680606229202,45.3506,20.676,20.674,19.39]
[1680606229408,0.06071553,20.679,20.674,19.39]
[1680606229601,19.39,20.682,20.674,19.39]
[1680606232003,19.39,20.681,20.673,19.39]
[1680606232304,24.22,20.682,20.671,24.0]
[1680606234805,10.0,20.681,20.671,24.0]
[1680606236000,34.22,20.682,20.671,24.0]
[1680606236806,10.0,20.681,20.671,24.0]
[1680606237307,0.07034273,20.684,20.671,24.0]
[1680606237501,0.07034273,20.684,20.678,24.07]
[1680606237804,67.39452702,20.703,20.666,146.8256]
[1680606237805,23.83496384,20.704,20.682,24.08]
[1680606238001,23.83496384,20.704,20.679,24.22]
[1680606238002,44.729,20.693,20.688,24.0]
[1680606238305,24.15,20.699,20.688,24.0]
[1680606239802,0.06239782,20.701,20.69,24.0]
[1680606240002,2.02730925,20.701,20.69,24.0]
[1680606240503,0.06239782,20.701,20.69,24.0]
[1680606240809,0.06239782,20.701,20.7,24.22]
[1680606241009,44.729,20.705,20.7,24.22]
[1680606241307,44.729,20.705,20.703,24.08]
[1680606241607,0.06886391,20.708,20.701,24.07]
[1680606242001,0.06886391,20.708,20.697,0.06654712]
[1680606242002,0.06886391,20.708,20.699,24.08]
[1680606244108,0.06886391,20.708,20.702,24.07]
[1680606244409,14.23090265,20.713,20.702,24.07]
[1680606244410,2.03716062,20.712,20.702,24.07]
[1680606245005,2.03716062,20.712,20.706,24.08]
[1680606245200,48.7693,20.715,20.706,24.08]
[1680606245403,1.96564076,20.714,20.706,24.08]
[1680606246105,1.96564076,20.713,20.706,24.08]
[1680606246306,114.63807191,20.716,20.706,24.08]
[1680606246500,1.96580204,20.715,20.706,24.08]
[1680606248205,11.96580204,20.715,20.706,24.08]
[1680606248406,1.96580204,20.714,20.706,24.08]
[1680606248605,1.96580204,20.713,20.706,24.08]
[1680606248808,1.96580204,20.712,20.706,24.08]
[1680606249005,10.0,20.715,20.706,24.08]
[1680606249307,1.96577609,20.714,20.706,24.08]
[1680606249805,1.96577609,20.713,20.706,24.08]
[1680606250006,10.0,20.715,20.706,24.08]
[1680606250303,1.96577266,20.714,20.706,24.08]
[1680606250610,1.96577266,20.713,20.706,24.08]
[1680606250803,10.0,20.715,20.706,24.08]
[1680606251107,1.96576542,20.714,20.706,24.08]
[1680606251303,1.96576542,20.714,20.702,0.06943837]
[1680606251304,1.96576542,20.713,20.703,24.22]
[1680606251606,49.49756542,20.713,20.703,24.22]
[1680606251805,1.96576542,20.712,20.703,24.22]
[1680606253006,24.22,20.714,20.703,24.22]
[1680606253200,1.96581145,20.713,20.703,24.22]
[1680606256604,11.96581145,20.713,20.703,24.22]
[1680606256809,1.96581145,20.712,20.703,24.22]
[1680606257012,10.0,20.713,20.703,24.22]
[1680606257211,1.96722151,20.712,20.703,24.22]
[1680606257605,10.0,20.713,20.703,24.22]
[1680606257811,1.96722681,20.712,20.703,24.22]
[1680606258012,24.22,20.714,20.703,24.22]
[1680606258214,1.96718579,20.713,20.703,24.22]
[1680606258514,1.96718579,20.713,20.704,10.0]
[1680606258713,1.96718579,20.713,20.706,24.08]
[1680606259008,1.96718579,20.712,20.706,24.08]
[1680606259321,114.63807191,20.716,20.706,24.08]
[1680606259613,46.52459965,20.715,20.706,24.08]
[1680606259813,1.96719965,20.714,20.706,24.08]
[1680606260306,1.96719965,20.713,20.706,24.08]
[1680606260504,1.96719965,20.712,20.706,24.08]
[1680606260709,114.63807191,20.716,20.706,24.08]
[1680606260906,1.96722976,20.715,20.706,24.08]
[1680606262014,26.04722976,20.715,20.704,24.08]
[1680606262216,1.96722976,20.714,20.704,24.08]
[1680606264715,24.22,20.712,20.702,0.06943837]
[1680606264919,1.96722976,20.711,20.702,0.06943837]
[1680606265121,24.22,20.712,20.702,0.06943837]
[1680606272021,24.22,20.714,20.703,24.07]
[1680606272223,1.96707356,20.713,20.703,24.07]
[1680606277624,1.96707356,20.713,20.706,24.0]
[1680606277823,14.63807191,20.716,20.706,24.0]
[1680606278023,1.96705325,20.715,20.706,24.0]
[1680606287826,14.63807191,20.716,20.709,24.08]
[1680606287827,0.06121267,20.716,20.709,24.08]
[1680606298932,0.06121267,20.716,20.705,24.0]
[1680606299139,24.15,20.714,20.702,24.13943837]
[1680606299438,0.06121267,20.716,20.706,24.07]
[1680606301240,24.22,20.714,20.702,24.13943837]
[1680606302046,0.06121267,20.716,20.706,24.22]
[1680606302337,0.06121267,20.716,20.709,24.08]
[1680606308052,0.06121267,20.716,20.707,48.6652]
[1680606308053,0.06121267,20.716,20.713,24.22]
[1680606308251,1.96602101,20.722,20.713,24.22]
[1680606310453,2.03072377,20.722,20.713,24.22]
[1680606313154,1.96602101,20.721,20.713,24.22]
[1680606313355,0.06470276,20.722,20.713,24.22]
[1680606313755,2.03020886,20.722,20.713,24.22]
[1680606314056,1.9655061,20.721,20.713,24.22]
[1680606314256,0.06470276,20.722,20.713,24.22]
[1680606314657,2.03038638,20.722,20.713,24.22]
[1680606314857,1.96568362,20.721,20.713,24.22]
[1680606315157,0.06470276,20.722,20.713,24.22]
[1680606315559,2.03039063,20.722,20.713,24.22]
[1680606315859,1.96568787,20.721,20.713,24.22]
[1680606316158,0.06470276,20.722,20.713,24.22]
[1680606316360,0.06470276,20.722,20.711,24.07]
[1680606316361,24.28470276,20.722,20.711,24.07]
[1680606316554,1.96565157,20.721,20.711,24.07]
[1680606320662,10.0,20.72,20.711,24.07]
[1680606321568,24.28470276,20.722,20.711,24.07]
[1680606321765,1.96554049,20.721,20.711,24.07]
[1680606322459,11.96554049,20.721,20.711,24.07]
[1680606322767,10.0,20.721,20.711,24.07]
[1680606323562,1.96576131,20.72,20.711,24.07]
[1680606323863,24.28470276,20.722,20.711,24.07]
[1680606324059,1.9653632,20.721,20.711,24.07]
[1680606325767,24.28470276,20.722,20.711,23.9096476]
[1680606328363,0.06470276,20.722,20.714,24.0]
[1680606332068,0.06470276,20.722,20.716,24.22]
[1680606332261,24.29065018,20.726,20.716,24.22]
[1680606332469,0.07065018,20.726,20.719,24.0]
[1680606338174,0.07065018,20.726,20.721,24.07]
[1680606338370,2.03312627,20.731,20.721,24.07]
[1680606344176,2.03312627,20.731,20.716,24.29114577]
[1680606344177,24.08,20.727,20.716,24.29114577]
[1680606344373,10.0,20.726,20.716,24.29114577]
[1680606345076,24.08,20.727,20.716,24.29114577]
[1680606345279,45.7714,20.73,20.716,0.07114577]
[1680606345280,24.22,20.724,20.716,0.07114577]
[1680606345581,10.0,20.723,20.716,0.07114577]
[1680606346474,24.22,20.724,20.716,0.07114577]
[1680606348783,24.0809349,20.724,20.716,0.07114577]
[1680606351986,24.08,20.726,20.716,0.07114577]
[1680606377598,24.08,20.723,20.716,0.07114577]
[1680606380499,24.08,20.726,20.716,24.29114577]
[1680606380799,0.06973343,20.727,20.716,24.29114577]
[1680606380800,0.06973343,20.727,20.719,24.08]
[1680606381999,24.28973343,20.727,20.716,24.07114577]
[1680606388301,0.06973343,20.727,20.719,24.22]
[1680606403318,0.06973343,20.727,20.722,24.0]
[1680606403617,9.70144787,20.729,20.722,24.0]
[1680606407919,9.70144787,20.729,20.719,24.22]
[1680606408322,69.9914,20.73,20.719,24.22]
[1680606416727,45.7714,20.73,20.722,24.0]
[1680606426134,69.8514,20.73,20.719,24.07]
[1680606439445,14.52312855,20.735,20.729,24.07]
[1680606439751,144.7,20.756,20.734,24.22]
[1680606439945,1.95459052,20.755,20.741,24.07]
[1680606440448,2.01605411,20.755,20.745,24.08]
[1680606440650,1.95459052,20.754,20.745,24.08]
[1680606440840,106.22247356,20.757,20.743,24.22]
[1680606441046,106.22247356,20.757,20.741,0.06323291]
[1680606441349,24.22,20.755,20.742,10.0]
[1680606441540,1.95437985,20.754,20.741,0.06323291]
[1680606441747,91.7966424,20.757,20.741,0.06323291]
[1680606441948,1.95441778,20.756,20.741,0.06323291]
[1680606442149,24.22,20.749,20.741,0.06323291]
[1680606442351,0.06096122,20.752,20.743,24.0]
[1680606442653,1.95474699,20.754,20.743,24.0]
[1680606442852,0.06538379,20.755,20.743,24.0]
[1680606443152,24.21538379,20.755,20.743,24.0]
[1680606443347,1.95415814,20.754,20.743,24.0]
[1680606443746,1.95415814,20.754,20.741,0.06323291]
[1680606443747,24.08,20.748,20.741,0.06323291]
[1680606444147,336.42898446,20.757,20.728,14.15686518]
[1680606444148,24.22,20.745,20.728,14.15686518]
[1680606444353,24.22,20.745,20.723,24.2]
[1680606444551,24.22,20.745,20.724,129.63002869]
[1680606444751,24.22,20.745,20.734,24.0]
[1680606445247,45.1923,20.749,20.723,24.2]
[1680606445248,24.22,20.743,20.732,24.13255068]
[1680606445450,24.22,20.743,20.732,24.07]
[1680606445652,0.07081461,20.745,20.735,24.08]
[1680606445947,0.07081461,20.745,20.738,24.07]
[1680606448852,91.72898446,20.757,20.738,100.0]
[1680606449157,91.72898446,20.757,20.749,24.0]
[1680606450953,115.94898446,20.757,20.746,24.0626902]
[1680606451149,47.1002,20.756,20.746,24.0626902]
[1680606451453,47.1002,20.756,20.752,24.07]
[1680606451653,91.72898446,20.757,20.752,24.07]
[1680606452046,91.72898446,20.757,20.749,36.06]
[1680606453056,91.72898446,20.757,20.751,35.87]
[1680606455150,91.72898446,20.757,20.752,10.0]
[1680606456047,71.72898446,20.757,20.755,36.06]
[1680606456251,36.06,20.772,20.756,36.06]
[1680606456454,45.3573,20.768,20.758,36.06]
[1680606456650,100.0,20.787,20.758,136.06]
[1680606456849,47.30552672,20.786,20.753,47.6827]
[1680606457054,36.06,20.776,20.762,36.06]
[1680606457356,1.94822672,20.775,20.762,0.06671837]
[1680606457556,48.6814,20.775,20.762,35.82671837]
[1680606457751,1.94822672,20.774,20.762,35.82671837]
[1680606458052,0.07144726,20.776,20.762,35.82671837]
[1680606458856,0.07144726,20.776,20.762,0.06671837]
[1680606459058,144.77144726,20.776,20.762,0.06671837]
[1680606459255,195.3305893,20.775,20.762,0.06671837]
[1680606459458,35.84,20.77,20.762,0.06671837]
[1680606460161,1.94266793,20.769,20.762,0.06671837]
[1680606460457,35.84,20.77,20.762,0.06671837]
[1680606460858,35.84,20.77,20.753,47.6827]
[1680606460859,35.84,20.767,20.753,83.5627]
[1680606461057,10.0,20.769,20.753,35.88]
[1680606461257,1.94373104,20.768,20.753,35.88]
[1680606461460,193.3814,20.775,20.755,35.87]
[1680606461662,1.94288514,20.774,20.755,35.87]
[1680606461963,0.06105857,20.772,20.762,36.06]
[1680606462157,0.06105857,20.772,20.763,10.0]
[1680606462355,0.06105857,20.772,20.765,36.06]
[1680606463165,0.00105857,20.772,20.768,36.06]
[1680606463461,50.28199662,20.794,20.768,100.0]
[1680606463661,37.72959662,20.793,20.768,100.0]
[1680606463860,1.93959662,20.792,20.768,100.0]
[1680606464056,0.0612296,20.787,20.773,0.06553448]
[1680606464660,0.0012296,20.787,20.773,0.06553448]
[1680606464855,1.94082622,20.787,20.775,36.06]
[1680606465057,1.93959662,20.786,20.775,36.06]
[1680606465264,1.93959662,20.785,20.776,10.0]
[1680606465460,0.0012296,20.787,20.773,0.06553448]
[1680606465952,35.84,20.784,20.773,0.06553448]
[1680606466155,36.06,20.78,20.773,0.06553448]
[1680606466358,1.93959662,20.779,20.773,0.06553448]
[1680606466660,1.93959662,20.778,20.769,0.06036736]
[1680606466859,0.06736312,20.781,20.767,100.0]
[1680606467054,0.06342451,20.781,20.767,0.07049564]
[1680606467259,36.12342451,20.781,20.767,0.07049564]
[1680606467560,1.93978362,20.78,20.767,0.07049564]
[1680606467755,0.06342451,20.781,20.767,100.07049564]
[1680606467954,0.06342451,20.781,20.773,10.0]
[1680606468967,0.00342451,20.781,20.778,36.06]
[1680606469267,1.93809443,20.785,20.778,36.06]
[1680606469453,45.0321,20.792,20.782,36.06]
[1680606469658,1.93858755,20.791,20.782,36.06]
[1680606470057,0.00858755,20.791,20.786,36.06]
[1680606470356,1.93859661,20.799,20.789,35.98]
[1680606470564,1.93859661,20.8,20.794,36.06]
[1680606470762,24.31227483,20.815,20.794,36.06]
[1680606470960,24.31227483,20.815,20.784,36.02]
[1680606470961,1.93433992,20.814,20.784,36.02]
[1680606471160,48.6272,20.816,20.784,36.02]
[1680606471161,146.63433992,20.815,20.784,36.02]
[1680606471364,0.06696283,20.807,20.795,10.0]
[1680606471665,0.06781702,20.808,20.801,35.86]
[1680606471868,1.93433992,20.836,20.797,0.06544358]
[1680606472057,1.93433992,20.836,20.795,10.0]
[1680606472058,144.7,20.836,20.795,10.0]
[1680606472361,146.60865951,20.835,20.801,36.02]
[1680606472561,1.90865951,20.834,20.795,10.0]
[1680606472759,1.90865951,20.834,20.807,100.0]
[1680606472965,0.06104715,20.828,20.813,0.07128584]
[1680606473166,0.06687298,20.828,20.813,0.07128584]
[1680606473364,0.06687298,20.828,20.813,0.06944472]
[1680606474361,0.00687298,20.828,20.813,0.06944472]
[1680606474771,1.91553249,20.828,20.813,0.06944472]
[1680606474970,1.90865951,20.827,20.813,0.06944472]
[1680606475568,35.84,20.819,20.813,0.06944472]
[1680606475766,0.00865951,20.818,20.81,10.0]
[1680606476070,0.00558016,20.823,20.81,45.9]
[1680606476271,1.76670209,20.826,20.817,100.0]
[1680606476566,1.76589455,20.825,20.817,35.76]
[1680606476867,1.76589455,20.824,20.814,35.88]
[1680606477068,0.00589455,20.823,20.81,10.0]
[1680606477266,0.00589455,20.829,20.818,10.0]
[1680606477470,1.76631582,20.836,20.821,47.71]
[1680606477675,1.76631582,20.836,20.818,57.86]
[1680606477870,1.76631582,20.836,20.818,10.0]
[1680606478472,0.06521346,20.834,20.821,48.04]
[1680606478669,0.06521346,20.834,20.82,0.06052595]
[1680606478866,47.58,20.826,20.818,10.0]
[1680606479067,48.04,20.819,20.81,10.0]
[1680606479264,1.76660021,20.818,20.81,10.0]
[1680606479473,100.0,20.828,20.811,47.71]
[1680606479667,100.0,20.828,20.81,10.0]
[1680606479668,49.74288428,20.827,20.81,10.0]
[1680606479971,47.82,20.825,20.811,0.06192803]
[1680606480171,1.83791912,20.826,20.811,0.06192803]
[1680606480172,47.58,20.822,20.811,10.06192803]
[1680606480369,1.76648428,20.821,20.799,48.04]
[1680606480670,1.76648428,20.82,20.798,48.7587]
[1680606480865,1.76648428,20.819,20.798,48.7587]
[1680606481071,48.04,20.813,20.799,10.0]
[1680606481269,1.76648428,20.812,20.799,10.06525026]
[1680606481571,0.00562822,20.813,20.799,0.06525026]
[1680606481768,0.00562822,20.813,20.807,100.0]
[1680606481973,1.76649481,20.835,20.812,47.86]
[1680606482175,1.76649481,20.835,20.82,48.04]
[1680606482374,1.76649481,20.834,20.82,48.04]
[1680606482567,1.76649481,20.834,20.82,48.10051968]
[1680606482568,1.76649481,20.833,20.82,48.10051968]
[1680606482871,1.76649481,20.832,20.823,48.04]
[1680606483077,1.76649481,20.831,20.823,48.04]
[1680606483268,0.06446913,20.834,20.821,10.0]
[1680606483474,47.88446913,20.834,20.82,0.06051968]
[1680606483773,48.04,20.831,20.82,0.06051968]
[1680606483973,47.72479481,20.833,20.82,0.06051968]
[1680606483974,47.58,20.828,20.82,0.06051968]
[1680606484171,1.76649481,20.827,20.82,0.06051968]
[1680606484774,47.58,20.832,20.82,0.06051968]
[1680606484775,1.76649481,20.831,20.82,0.06051968]
[1680606485079,1.76649481,20.83,20.82,0.06051968]
[1680606485374,1.76649481,20.829,20.82,0.06051968]
[1680606485678,1.76649481,20.828,20.82,0.06051968]
[1680606485974,1.76649481,20.827,20.813,44.9052]
[1680606486372,48.04,20.825,20.813,44.9052]
[1680606486574,1.76649481,20.824,20.809,47.71]
[1680606486774,1.76649481,20.824,20.812,48.04]
[1680606487075,47.82,20.828,20.812,48.04]
[1680606487076,1.76649481,20.823,20.812,48.04]
[1680606487270,0.06213376,20.825,20.812,48.04]
[1680606487470,0.06213376,20.825,20.818,47.86]
[1680606487669,100.0,20.848,20.813,48.7238]
[1680606487873,100.0,20.838,20.826,48.04]
[1680606488069,1.76596912,20.837,20.826,48.04]
[1680606488270,1.76596912,20.836,20.826,48.04]
[1680606488468,1.76596912,20.836,20.83,48.04]
[1680606488671,1.76596912,20.835,20.83,48.04]
[1680606488975,1.76596912,20.834,20.831,10.0]
[1680606489173,1.76596912,20.833,20.828,48.04]
[1680606489370,0.06742416,20.84,20.825,0.0606297]
[1680606489566,1.83339328,20.84,20.825,0.0606297]
[1680606490679,47.58,20.834,20.825,0.0606297]
[1680606490875,1.76596912,20.833,20.818,48.04]
[1680606491076,47.58,20.831,20.815,47.86]
[1680606491377,148.04,20.828,20.811,47.86]
[1680606491574,1.76596912,20.827,20.811,47.86]
[1680606491774,0.06927353,20.826,20.812,0.06253685]
[1680606492269,1.83524265,20.826,20.816,47.93]
[1680606492476,48.05,20.844,20.822,48.05]
[1680606492670,46.3702,20.84,20.825,47.58]
[1680606492977,1.76536372,20.839,20.829,47.93]
[1680606493472,1.76536372,20.838,20.831,48.05]
[1680606493678,1.76536372,20.837,20.831,48.05]
[1680606493973,0.060093,20.844,20.832,57.2261]
[1680606494173,46.3702,20.85,20.832,57.2261]
[1680606494174,0.06930389,20.845,20.832,47.2261]
[1680606496080,0.06930389,20.845,20.831,0.06323954]
[1680606496878,48.05,20.841,20.831,0.06323954]
[1680606497077,100.0,20.838,20.819,47.58]
[1680606497278,1.7653534,20.837,20.819,47.58]
[1680606497582,1.7653534,20.837,20.822,48.05]
[1680606497782,100.0,20.848,20.818,49.0028]
[1680606497783,1.7653534,20.836,20.825,47.94]
[1680606497980,1.7653534,20.846,20.823,10.0]
[1680606498182,100.0,20.868,20.838,48.05]
[1680606498380,100.0,20.858,20.838,48.05]
[1680606498585,1.76486518,20.857,20.838,48.05]
[1680606498879,1.76486518,20.857,20.839,10.0]
[1680606499077,1.76486518,20.857,20.838,47.94]
[1680606499278,0.06880846,20.855,20.84,0.06109492]
[1680606500381,48.05,20.854,20.84,0.06109492]
[1680606500586,1.76486518,20.853,20.824,10.0]
[1680606500779,1.76486518,20.852,20.835,47.94]
[1680606501087,1.76486518,20.851,20.835,47.94]
[1680606501287,1.76486518,20.858,20.832,47.94]
[1680606501477,100.0,20.849,20.838,0.07114088]
[1680606501682,59.64486518,20.848,20.823,14.52669597]
[1680606501882,59.64486518,20.848,20.806,100.0]
[1680606501883,1.76486518,20.847,20.806,100.0]
[1680606502086,1.76486518,20.847,20.816,100.0]
[1680606502284,1.76486518,20.847,20.827,47.93]
[1680606502489,1.76486518,20.847,20.83,47.58]
[1680606502687,100.0,20.849,20.831,0.06975281]
[1680606502688,0.06301842,20.846,20.831,0.06975281]
[1680606502889,48.04301842,20.846,20.831,0.06975281]
[1680606503085,1.76486518,20.845,20.831,0.06975281]
[1680606503788,1.76486518,20.844,20.831,48.00975281]
[1680606503982,1.76486518,20.843,20.831,48.00975281]
[1680606504186,1.76486518,20.842,20.831,48.00975281]
[1680606504387,1.76486518,20.841,20.832,45.0981]
[1680606504690,1.76486518,20.84,20.832,45.0981]
[1680606504894,0.06301842,20.846,20.832,45.0981]
[1680606504895,1.76486518,20.839,20.832,45.0981]
[1680606505087,1.76486518,20.838,20.832,45.0981]
[1680606505283,1.76486518,20.837,20.832,45.0981]
[1680606505483,1.76530036,20.836,20.834,48.05]
[1680606505684,48.1216,20.852,20.834,48.05]
[1680606505888,0.06269347,20.85,20.836,0.06551685]
[1680606507192,0.06269347,20.85,20.838,47.58]
[1680606507393,0.06269347,20.85,20.841,48.05]
[1680606507593,1.82787946,20.85,20.842,10.0]
[1680606507788,1.76518599,20.849,20.848,47.94]
[1680606508292,0.07044404,20.856,20.848,47.94]
[1680606508592,0.07044404,20.856,20.849,10.0]
[1680606509493,0.07044404,20.856,20.852,47.93]
[1680606509690,1.76469052,20.859,20.849,10.0]
[1680606509891,1.76469052,20.858,20.849,10.0]
[1680606510192,1.76469052,20.857,20.849,10.0]
[1680606510389,1.76469052,20.857,20.847,0.06517787]
[1680606510390,1.76469052,20.856,20.847,0.06517787]
[1680606510591,1.76469052,20.855,20.847,0.06517787]
[1680606510793,0.06926137,20.861,20.848,10.0]
[1680606510992,1.76350838,20.863,20.857,47.93]
[1680606511290,46.3735,20.871,20.858,10.0]
[1680606511488,1.76340867,20.87,20.848,10.0]
[1680606511688,1.76340867,20.87,20.846,14.24201042]
[1680606511891,100.0,20.869,20.844,144.7]
[1680606512192,0.06702245,20.864,20.849,0.06651165]
[1680606512999,1.83043112,20.864,20.849,0.06651165]
[1680606513196,1.76340867,20.863,20.849,0.06651165]
[1680606513389,1.76340867,20.862,20.849,0.06651165]
[1680606513595,0.06702245,20.864,20.851,47.58]
[1680606514092,1.83043112,20.864,20.851,47.58]
[1680606514300,1.76340867,20.863,20.851,47.58]
[1680606514502,1.76340867,20.862,20.852,10.0]
[1680606514695,1.76340867,20.861,20.857,48.05]
[1680606514898,1.76340867,20.86,20.857,48.05]
[1680606515106,0.06702245,20.864,20.857,48.05]
[1680606515298,0.00340867,20.875,20.86,47.58]
[1680606515600,0.00340867,20.876,20.86,47.58]
[1680606515997,0.00340867,20.876,20.861,44.3448]
[1680606516200,0.00340867,20.878,20.861,44.3448]
[1680606516393,0.06010599,20.877,20.862,0.06230169]
[1680606517898,48.05,20.873,20.851,47.94]
[1680606518100,0.00340867,20.872,20.852,44.3448]
[1680606518300,100.0,20.87,20.852,44.3448]
[1680606518500,0.00340867,20.869,20.852,44.3448]
[1680606518802,0.00340867,20.872,20.852,44.3448]
[1680606518994,0.06708628,20.869,20.855,0.06604662]
[1680606519194,47.94708628,20.869,20.855,0.06604662]
[1680606519401,154.70340867,20.868,20.855,0.06604662]
[1680606519703,0.00340867,20.867,20.855,0.06604662]
[1680606520501,192.75,20.866,20.852,44.3448]
[1680606520699,0.00340867,20.865,20.852,44.3448]
[1680606521204,0.00340867,20.865,20.854,48.05]
[1680606521398,0.06708628,20.869,20.855,10.0]
[1680606521603,0.06708628,20.869,20.857,47.94]
[1680606523409,0.07049495,20.869,20.852,44.41471302]
[1680606523602,10.07049495,20.869,20.852,44.41471302]
[1680606523803,48.05,20.866,20.852,44.41471302]
[1680606524008,0.00340867,20.865,20.852,44.41471302]
[1680606524411,0.06708628,20.869,20.854,47.58]
[1680606525309,0.06708628,20.869,20.852,44.41471302]
[1680606525310,0.06708628,20.869,20.858,48.05]
[1680606526007,0.06708628,20.869,20.856,0.06698171]
[1680606528613,10.0,20.868,20.852,44.3448]
[1680606528809,0.00340867,20.867,20.852,44.3448]
[1680606529709,0.00340867,20.867,20.852,44.41111637]
[1680606530112,0.00340867,20.868,20.852,44.41111637]
[1680606530412,192.75,20.865,20.852,44.41111637]
[1680606530605,46.25160867,20.864,20.852,0.06631637]
[1680606530805,0.00340867,20.863,20.852,0.06631637]
[1680606531407,0.06703193,20.865,20.852,0.06631637]
[1680606531808,0.0704406,20.865,20.852,0.06631637]
[1680606532010,0.06703193,20.865,20.852,0.06631637]
[1680606532616,100.0,20.86,20.852,0.06631637]
[1680606532910,0.00340867,20.859,20.852,0.06631637]
[1680606533214,0.0704406,20.865,20.852,0.06631637]
[1680606534211,10.0704406,20.865,20.852,0.06631637]
[1680606534411,0.00340867,20.864,20.852,0.06631637]
[1680606535014,0.06703193,20.865,20.854,48.05]
[1680606535515,0.06703193,20.865,20.852,0.06631637]
[1680606536215,0.06703193,20.865,20.857,47.94]
[1680606536421,0.00340867,20.874,20.862,47.58]
[1680606536622,100.0,20.89,20.868,47.58]
[1680606536623,0.00340867,20.88,20.868,47.58]
[1680606536810,48.51459246,20.889,20.868,147.58]
[1680606537019,48.51459246,20.889,20.874,47.58]
[1680606537020,1.76189246,20.888,20.874,47.58]
[1680606537515,11.83134445,20.888,20.874,47.64845171]
[1680606537708,1.76189246,20.887,20.874,47.64845171]
[1680606537909,1.76189246,20.886,20.874,0.06845171]
[1680606538115,1.76189246,20.885,20.874,0.06845171]
[1680606538315,1.76189246,20.884,20.874,0.06845171]
[1680606538506,1.76189246,20.883,20.874,0.06845171]
[1680606538709,1.76189246,20.882,20.874,0.06845171]
[1680606538909,1.76189246,20.881,20.874,0.06845171]
[1680606539107,0.06945199,20.888,20.874,0.06845171]
[1680606539108,1.76189246,20.88,20.874,0.06845171]
[1680606539312,1.76189246,20.879,20.873,47.94]
[1680606539512,0.06517942,20.883,20.873,47.94]
[1680606539718,0.07121971,20.885,20.873,47.94]
[1680606539923,0.07044364,20.886,20.873,47.94]
[1680606540317,0.07044364,20.886,20.872,0.06501645]
[1680606540513,48.12044364,20.886,20.872,0.06501645]
[1680606540713,1.76189246,20.885,20.872,0.06501645]
[1680606541316,1.76189246,20.884,20.872,0.06501645]
[1680606541518,47.15599246,20.883,20.872,0.06501645]
[1680606541713,1.76189246,20.882,20.872,0.06501645]